Cogmind - Beta 16.1 @@@ ROGUE MODE // 2026.03.31 @ 19:20:13 Player: Gatamar Result: Destroyed by 0P-LZK(R) with Subdweller Machine Gun Performance ------------- Evolutions (0) 0 Regions Visited (2) 400 Robots Destroyed (20) 100 Value Destroyed (380) 380 Prototype IDs (0) 0 Alien Tech Used (0) 0 Bonus (0) 0 TOTAL SCORE: 880 Bonus ------- None Cogmind --------- Core Integrity 0/250 Matter 300/300 Energy 98/100 System Corruption 0% Temperature Cool (0) Movement Treading (320) Ox2 Location -10/Subcaves Parts ------- > --- POWER (1) -------- (None) > --- PROPULSION (2) --- Light Treads > --- UTILITY (2) ------ High-capacity Storage Unit > --- WEAPON (2) ------- Assault Rifle Makeshift Hammer > --- INVENTORY (20) --- Wheel Wheel Compact Wheel Compact Wheel Small Matter Pod (50) Medium Matter Pod (100) Medium Matter Pod (100) Makeshift Light Armor Plating Assault Rifle Assault Rifle Grenade Launcher Grenade Launcher Mining Laser Hammer Peak State ------------ > --- POWER ------------ Light Ion Engine > --- PROPULSION ------- Light Treads Light Treads > --- UTILITY ---------- High-capacity Storage Unit Seismic Detector > --- WEAPON ----------- Battle Cannon Makeshift Hammer > --- INVENTORY -------- Light Treads Light Treads Wheel Wheel Compact Wheel Compact Wheel Small Matter Pod Medium Matter Pod Medium Matter Pod Makeshift Light Armor Plating Assault Rifle Assault Rifle Assault Rifle Grenade Launcher Grenade Launcher Mining Laser Hammer [Rating: 13] Favorites ----------- Power Light Ion Engine Engine Light Ion Engine Propulsion Light Treads Treads Light Treads Utility High-capacity Storage Unit Device Seismic Detector Storage High-capacity Storage Unit Weapon Assault Rifle Ballistic Gun Assault Rifle Ballistic Cannon Battle Cannon Special Weapon Mining Laser Impact Weapon Makeshift Hammer Build | -11 -10 -10 ------- Run | Yrd Mat Sub Slots Evolved . | . . . Power . | . . . Propulsion . | . . . Utility . | . . . Weapon . | . . . Parts Attached 16 | 6 4 6 Power 2 | . 1 1 Engine 2 | . 1 1 Core . | . . . Reactor . | . . . Propulsion 4 | 2 . 2 Treads 4 | 2 . 2 Leg . | . . . Wheel . | . . . Hover . | . . . Flight . | . . . Utility 3 | 2 1 . Device 1 | 1 . . Storage 2 | 1 1 . Processor . | . . . Hackware . | . . . Protection . | . . . Artifact . | . . . Weapon 7 | 2 2 3 Energy Gun . | . . . Energy Cannon . | . . . Ballistic Gun 3 | 2 . 1 Ballistic Cannon 1 | . . 1 Launcher . | . . . Special Weapon 1 | . 1 . Impact Weapon 2 | . 1 1 Slashing Weapon . | . . . Piercing Weapon . | . . . Special Melee Weapon . | . . . Unidentified Prototypes . | . . . Parts Lost 7 | . . 7 Power 2 | . . 2 Propulsion 3 | . . 3 Utility 1 | . . 1 Weapon 1 | . . 1 Highest Loss Streak 2 | . . 2 To Critical Strikes . | . . . Average Backups 14 | 5 13 15 Power . | 1 1 . Propulsion 5 | 3 4 5 Utility 3 | . 3 3 Weapon 5 | . 3 6 Tool/Special . | . . . Unused Backups 13 | . 3 10 Power 1 | . 1 . Propulsion 6 | . 2 4 Utility 4 | . . 4 Weapon 2 | . . 2 Tool/Special . | . . . Average Slot Usage (%) 97 | . 96 97 Engine 12 | . 10 12 Treads 27 | . 28 27 Device 13 | . 14 12 Storage 14 | . 14 14 Ballistic Gun 8 | . 17 6 Ballistic Cannon 6 | . . 8 Impact Weapon 12 | . 8 13 Peak Build Rating 13 | 6 8 13 Average Rating 9 | 4 7 10 On Entrance 4 | . 6 8 Avg Prop Armor Cover (%) . | . . . Naked Turns . | . . . Heaviest Build 50 | 10 50 50 Greatest Support 40 | 40 40 40 Greatest Overweight (x) 2 | 2 1 2 Average Overweight (x) . | . . 1 Largest Inventory Capacity 20 | 8 20 20 Average Capacity 19 | 7 19 20 Most Carried 18 | 7 18 17 Average Carried 14 | 6 13 15 Final Capacity 20 | 8 20 20 Final Carried 16 | 7 16 14 Class Distribution -------------------- 100% | Mutant Dominant Class ---------------- Mutant | -10/Materials Mutant | -10/Subcaves Resources | -11 -10 -10 ----------- Run | Yrd Mat Sub Matter Collected 757 | 286 297 174 Remotely . | . . . Salvage Created 600 | 183 124 293 Parts 34 | 6 9 19 Haulers Intercepted 2 | . 2 . Recyclers Shooed 1 | 1 . . Parts Field Recycled . | . . . Retrieved Matter . | . . . Parts Self-Destructed 9 | . . 9 Prevented 1 | . . 1 Parts Restored . | . . . Kills | -11 -10 -10 ------- Run | Yrd Mat Sub Combat Hostiles Destroyed 11 | . . 11 Melee 1 | . . 1 Guns 1 | . . 1 Cannons 4 | . . 4 Classes Destroyed 8 | 2 3 3 Worker 1 | . 1 . Tunneler 4 | 4 . . Hauler 2 | . 2 . Recycler 1 | 1 . . Watcher 1 | . 1 . Swarmer 4 | . . 4 Sentry 1 | . . 1 Subdweller 6 | . . 6 Best Kill Streak 4 | 4 1 4 Combat Bots Only 4 | . . 4 Max Kills in Single Turn 1 | 1 1 1 Gunslinging . | . . . Exploded . | . . . Melee 1 | . . 1 Uniques/NPCs Destroyed . | . . . Combat | -11 -10 -10 -------- Run | Yrd Mat Sub Hostile Shots Fired 95 | . . 95 Missed 26 | . . 26 Hits 69 | . . 69 Projectile 69 | . . 69 Critical Strikes 4 | . . 4 Damage Taken 1175 | . . 1175 Core 274 | . . 274 Absorbed by Shields . | . . . Core Remaining (%) 100 | 100 . . Volleys Fired 26 | 7 2 17 Largest 2 | 2 1 2 Hottest 100 | 40 100 40 Shots Fired 40 | 14 2 24 Gun 29 | 14 . 15 Cannon 9 | . . 9 Launcher . | . . . Special 2 | . 2 . Kinetic 38 | 14 . 24 Thermal 2 | . 2 . Explosive . | . . . Electromagnetic . | . . . Robot Hit Streak 5 | 3 . 5 Robot Miss Streak 2 | 1 1 2 Penetration Max . | . . . Secondary Targets . | . . . Shots Hit Robots 47 | 9 4 34 Core Hits 16 | 6 3 7 Critical Kills . | . . . Critical Parts Destroyed 2 | . . 2 Critical Strikes 4 | . . 4 Blast 1 | . . 1 Smash 3 | . . 3 Melee Attacks 43 | . 11 32 Impact 43 | . 11 32 Slashing . | . . . Piercing . | . . . Sneak Attacks 3 | . 3 . Combat Hostiles . | . . . Follow-up Attacks . | . . . Damage Inflicted 1331 | 109 177 1045 Guns 228 | 109 . 119 Cannons 113 | . . 113 Explosions . | . . . Melee 990 | . 177 813 Ramming . | . . . Kinetic 341 | 109 . 232 Thermal . | . . . Explosive . | . . . Electromagnetic . | . . . Impact 990 | . 177 813 Slashing . | . . . Piercing . | . . . Highest Corruption . | . . . Average Corruption . | . . . Corruption Purged . | . . . Corruption Blocked . | . . . Overload Shots . | . . . Overflow Damage 132 | . 14 118 Projectiles . | . . . Explosions . | . . . Melee 132 | . 14 118 Knockbacks 3 | . . 3 Impact 2 | . . 2 Kinetic 1 | . . 1 Secondary . | . . . Self-Inflicted Damage . | . . . Shots . | . . . Rammed . | . . . Targets Rammed . | . . . Kicked . | . . . Crushed . | . . . Highest Temperature 261 | . 20 261 Average Temperature 64 | . 10 142 Received Heat Transfer 452 | . . 452 Siege Activations . | . . . Martial Activations . | . . . Shielding Activations . | . . . Robots Disrupted . | . . . Combat Hostiles . | . . . Robots Corrupted 6 | . 1 5 Combat Hostiles 5 | . . 5 Parts Fried 4 | . 1 3 Impact Corruptions 10 | . 1 9 Robots Melted . | . . . Combat Hostiles . | . . . Parts Melted . | . . . Heat Transferred . | . . . Parts Sabotaged . | . . . Parts Stolen . | . . . Parts Stripped . | . . . Power Chain Reactions . | . . . Alert | -11 -10 -10 ------- Run | Yrd Mat Sub Maximum Alert Level . | . . . Low Security (%) 100 | 100 100 . Level 1 . | . . . Level 2 . | . . . Level 3 . | . . . Level 4 . | . . . Level 5 . | . . . High Security . | . . . Max Security . | . . . Peak Influence 10 | 10 8 . Initial . | . . . Average 1 | . 1 . Influence Increases 199 | 25 44 130 Destroy 0b10 Robot/C 100 | . . 100 Destroy 0b10 Robot/NC 45 | 25 20 . Destroy Leader 6 | . 6 . Successful Hack 12 | . 12 . Destroy Structure 6 | . 6 . Lose Combat Pursuer 30 | . . 30 Influence Decreases 199 | 25 44 130 Time Decay 169 | 25 44 100 Lost Part 30 | . . 30 Squads Dispatched 3 | . 3 . Investigation 2 | . 2 . Extermination . | . . . Reinforcement 1 | . 1 . Assault . | . . . Garrison . | . . . Intercept . | . . . Searches Triggered . | . . . Construction Impeded . | . . . Haulers Reinforced . | . . . Active Scanning Responses . | . . . Cargo Convoy Interrupts . | . . . Stealth | -11 -10 -10 --------- Run | Yrd Mat Sub Distress Signals 1 | . 1 . Communications Jammed . | . . . Distress Signals . | . . . Times Spotted 19 | . 3 16 Peak Tracking Total 6 | . 1 6 Tactical Retreats 1 | . . 1 Traps | -11 -10 -10 ------- Run | Yrd Mat Sub Traps Triggered 2 | . . 2 Indirectly . | . . . Trap Hack Attempts . | . . . Triggered . | . . . Disarmed . | . . . Reprogrammed . | . . . Reused . | . . . Traps Extracted . | . . . Installed . | . . . Triggered . | . . . Machines | -11 -10 -10 ---------- Run | Yrd Mat Sub Machines Disabled . | . . . Max in Single Turn . | . . . Machines Repaired . | . . . Machines Dismantled . | . . . Machines Sabotaged . | . . . Overloaded Fab Kills . | . . . Hacking | -11 -10 -10 --------- Run | Yrd Mat Sub Machines Accessed 3 | . 2 1 Terminals 2 | . 2 . Fabricators . | . . . Repair Stations . | . . . Recycling Units . | . . . Scanalyzers . | . . . Garrison Access . | . . . Total Hacks 9 | . 5 4 Successful 8 | . 4 4 Failed 1 | . 1 . Catastrophic . | . . . Database Lockouts . | . . . Manual . | . . . Terminals 5 | . 5 . Fabricators . | . . . Repair Stations . | . . . Recycling Units . | . . . Scanalyzers . | . . . Garrison Access . | . . . Terminal Hacks 8 | . 4 4 Record 5 | . 1 4 Emergency Access Points 1 | . 1 . Recycling Unit Index 1 | . 1 . Scanalyzer Index 1 | . 1 . Fabricator Hacks . | . . . Repair Station Hacks . | . . . Recycling Unit Hacks . | . . . Scanalyzer . | . . . Garrison Access Hacks . | . . . Unauthorized Hacks . | . . . Terminals . | . . . Fabricators . | . . . Repair Stations . | . . . Recycling Units . | . . . Scanalyzers . | . . . Garrison Access . | . . . Data Cores Recovered . | . . . Used . | . . . Hacking Detections . | . . . Full Trace Events . | . . . Feedback Events . | . . . Feedback Blocked . | . . . Robot Schematics Acquired . | . . . Robots Built . | . . . Authchips . | . . . Time . | . . . Total Robot Build Rating . | . . . Part Schematics Acquired . | . . . Parts Built . | . . . Authchips . | . . . Time . | . . . Total Part Build Rating . | . . . Part Studies Acquired . | . . . Parts Repaired . | . . . Time . | . . . Parts Recycled . | . . . Recycled Matter . | . . . Retrieved Matter . | . . . Retrieved Components . | . . . Parts Scanalyzed . | . . . Part Schematics Acquired . | . . . Parts Damaged . | . . . Bothacking | -11 -10 -10 ------------ Run | Yrd Mat Sub Used RIF Installer . | . . . Robots Hacked . | . . . Non-combat . | . . . Combat . | . . . Robot Hacks Applied . | . . . Relay Couplers Released . | . . . Fabnet Peak Effective % . | . . . Robots Rewired . | . . . Allies Hacked . | . . . Hacks Repelled . | . . . Allies | -11 -10 -10 -------- Run | Yrd Mat Sub Total Allies . | . . . Largest Group . | . . . Highest-Rated Group . | . . . Highest-Rated Ally . | . . . Total Orders . | . . . Ally Attacks . | . . . Total Damage . | . . . Kills . | . . . Allies Corrupted . | . . . Allies Melted . | . . . Intel | -11 -10 -10 ------- Run | Yrd Mat Sub Active Infowar (turns) 2364 | 22 538 1804 Seismic 2364 | 22 538 1804 Robot Analysis Total . | . . . Derelict Logs Recovered . | . . . Drone Launches . | . . . Drone Recoveries . | . . . Exploration | -11 -10 -10 ------------- Run | Yrd Mat Sub Turns Passed 2692 | 212 538 1942 Spaces Moved 1037 | 114 202 721 Core 22 | 22 . . Treads 1015 | 92 202 721 Legs . | . . . Wheels . | . . . Hover . | . . . Flight . | . . . Fastest Speed 50 | 50 160 240 Average Speed 230 | 153 238 240 Slowest Speed 320 | 160 240 320 Overloaded Moves . | . . . Propulsion Burnouts . | . . . Robots Hopped . | . . . Potential Cave-ins . | . . . Cave-ins Triggered . | . . . Exploration Rate (%) 38 | 5 53 56 Regions Visited 2 Branch Regions 1 Pre-discovered Areas 1 | . . 1 Known Exits Taken . | . . . Unknown Exits Taken 2 | 1 1 . Scrap Searched 5 | . . 5 Spaces Dug 5 | . 5 . Terrain Destroyed 6 | . 6 . Melee 4 | . 4 . Projectile 2 | . 2 . AOE . | . . . Terrain Rammed . | . . . Walls Destroyed . | . . . Machines Disabled . | . . . Actions | -11 -10 -10 --------- Run | Yrd Mat Sub Total 1240 | 135 235 870 Wait 90 | . 2 88 Move 1035 | 113 201 721 Hop . | . . . Pick Up 24 | 9 12 3 Fast Attach 4 | 4 . . Attach 7 | 2 1 4 Detach . | . . . Swap 7 | . 3 4 Drop 4 | . 3 1 Fire 26 | 7 2 17 Melee 43 | . 11 32 Ram . | . . . Kick . | . . . Crush . | . . . Escape Stasis . | . . . Rewire . | . . . Trap . | . . . Miscellaneous . | . . . Route ------- -11/Scrapyard -10/Materials -10/Subcaves (discovered 1 exit: [*Mat]) History --------- Turn | Location | Event 14 | -11/Scrapyard | Discovered new exit (range 15) 213 | -11/Scrapyard | Entered Materials 214 | -10/Materials | Met a group of wandering Federalists 301 | -10/Materials | Build established: Mutant 344 | -10/Materials | Lost 4 allies 720 | -10/Materials | Discovered new exit (range 11) 751 | -10/Materials | Entered Subcaves 820 | -10/Subcaves | A swath of the cavern ceiling suddenly collapsed 910 | -10/Subcaves | Discovered new exit (range 9) 1476 | -10/Subcaves | Shifting Twisted Machinery released Sub. Power Source 1617 | -10/Subcaves | Shifting Twisted Machinery released Mak. Light Armor Plating 2181 | -10/Subcaves | Core integrity fell below 50% 2523 | -10/Subcaves | Core integrity fell below 20% 2595 | -10/Subcaves | Visited Clippyterm 2602 | -10/Subcaves | Learned location of Extension (-5) 2693 | -10/Subcaves | Destroyed by 0P-LZK(R) with Subdweller Machine Gun Last Messages --------------- It looks like you're planning to spring a Derelict or three, would you like help? World map updated: -5/Extension. >>Record! "Botnets" It looks like you seek to become a more effective hacker when it comes to the important hacks, and I heartily recommend installing Trojan(Botnet) on at least one or two Terminals to improve your odds of success elsewhere. >>Record "Optimus" It looks like you're curious about the current leader of 0bPrime. Optimus is well liked, but certainly not being up front with the UFD as a whole. 02687_ Lgt. Treads destroyed. 02688_ ML-BXN(R) suffers critical hit (Smash). 02688_ Destroyed Sub. Optics. 02688_ ML-BXN(R) system corrupted by crushing effect. Map ----- +----------------------------------------------------+ | ??????????????????????????????????????????# #????? | | ?????????????????????????????????????????## #????? | | ?????????????????????????????????????????# ##???? | | ?????????????????????????????????????????# #???? | | ????????????????????????????????????????### #####? | | ??????????????????????????????????????### # ## | | ????????????????????????????#######???# ## # | | ????????????????????????????#"""""#??## #### | | ????????????????????????????#""X""#??# #?# | | ????????????????????????????#" "#??##% #?### | | ????????????????????????????### ####### ##???# ## | | ?????????????????????????????## #### ##### #? | | ????????????????????????????## # ## #? | | ????????????????????????????# #### ##? | | ???????????????????????????# ## ##?# ##? | | ??????????????????????????# ### #??# #? | | ???????????????????????? "" #### #### #? | | ???????????????????????? "" " #?# # ##? | | ???????????????????????? ####" " #?# #?? | | ???????????????????????"""???##" #?# ## #? | | ????????????????????????"?##### #?# ### #####? | | ?????????????????????????##""""" #?# #?###????? | | ?????????????????????????#" "" #?# #????????? | | ?????????????????????????# ## " ### #????????? | | ????????????????????????## ### "" ##????????? | | ????????????????????????#@ R## "" #?????????? | | ????????????????????????##R #### #?????????? | | ????????????????????????? "##??# #????????? | | ????????????????????????? ##???# ##????????? | | ?????????????????????????#?????#### ###?????????? | | ??????????????????????????????????####???????????? | | ?????????????????????????????????????????????????? | | ?????????????????????????????????????????????????? | | ?????????????????????????????????????????????????? | | ?????????????????????????????????????????????????? | | ?????????????????????????????????????????????????? | | ?????????????????????????????????????????????????? | | ?????????????????????????????????????????????????? | | ??????#######????????????????????????????????????? | | ??##### ## #????????????????????????????????????? | | ??# #????????????????????????????????????? | | #?## ## ##????????????????????????????????????? | | #?## ## ##?????????????????????????????????????? | | #?# ## ##?????????????????????????????????????? | | ??# ### #?????????????????????????????????????? | | ??# ## ##?????????????????????????????????????? | | ### # #?????????????????????????????????????? | | # # ### ##?????????????????????????????????????? | | ## ### ##?????????????????????????????????????? | | # ## #?????????????????????????????????????? | +----------------------------------------------------+ Best States ------------- Heat Dissipation 25 Energy Generation 10 Energy Capacity 250 Matter Stores 300 Matter Capacity 300 Sight Range 16 Terrain Scan Density 10 Evasion (%) 40 Recoil Reduction 2 Item Schematics ----------------- None Robot Schematics ------------------ None Fabricated ------------ Nothing Repaired ---------- Nothing Studied --------- None Alien Tech Used ----------------- None Achievements -------------- None Challenges ------------ None Game ------ Seed PointCompactWall Manual? 0 Play Time 00:14:22 Cumulative 31.7 hours Start 2026.03.31 @ 19:09:06 End 2026.03.31 @ 19:20:13 Sessions 1 Manual Loads 0 Difficulty Rogue Special Mode None Game No. 83 Rogue 83 Adventurer 0 Explorer 0 Win Type - Total 0 Types 0/0/0/0/0/0/0/0/0/0 Lore% 27 Gallery% 28 Achievement% 21 Wizard Run 0 Options --------- Layout 2 ASCII 0 Keyboard 0 Movement Numpad Keybinds 0 Fullscreen 1 Font 32/SmallcapsGlow Map View 50x44 Zoom Use 0% Tactical HUD 1 Map Filters NONE Filters NONE Steam 1 RUN: fc96c8bc-9a92-481e-8d0f-c9c11bff178a